bitfinex/quotes_BTCUSD_20250109
["timestamp","ask_amount","ask_price","bid_price","bid_amount"]
[1736406608166,5.023e-05,94339.0,94337.0,0.0467]
[1736406608322,5.023e-05,94339.0,94338.0,0.0757]
[1736406608997,0.00105023,94339.0,94338.0,0.0757]
[1736406609572,0.00105023,94339.0,94338.0,0.0807]
[1736406609927,0.00205023,94339.0,94338.0,0.292703]
[1736406610287,0.00205023,94339.0,94338.0,0.294703]
[1736406610669,0.00205023,94339.0,94338.0,0.292703]
[1736406611055,0.00205023,94339.0,94338.0,0.294703]
[1736406611995,0.00105023,94339.0,94338.0,0.289703]
[1736406612217,0.00105023,94339.0,94338.0,0.294703]
[1736406612452,0.00105023,94339.0,94338.0,0.287703]
[1736406612669,0.00105023,94339.0,94338.0,0.289703]
[1736406612889,0.00205023,94339.0,94338.0,0.295703]
[1736406617163,0.0186584,94339.0,94338.0,0.295703]
[1736406617320,0.00205023,94339.0,94338.0,0.295703]
[1736406617520,0.00205023,94339.0,94338.0,0.0837]
[1736406620422,0.01865871,94339.0,94338.0,0.0837]
[1736406620603,0.00205023,94339.0,94338.0,0.0837]
[1736406627106,0.01865865,94339.0,94338.0,0.0837]
[1736406627264,0.00205023,94339.0,94338.0,0.0837]
[1736406628674,0.00205023,94339.0,94338.0,0.0817]
[1736406629164,0.00105023,94339.0,94338.0,0.0777]
[1736406629494,0.00205023,94339.0,94338.0,0.0817]
[1736406629828,0.00205023,94339.0,94338.0,0.0837]
[1736406630047,0.00105023,94339.0,94338.0,0.0777]
[1736406630369,0.01765888,94339.0,94338.0,0.0777]
[1736406630725,0.00105023,94339.0,94338.0,0.0777]
[1736406631403,0.00205023,94339.0,94338.0,0.0837]
[1736406632236,0.00105023,94339.0,94338.0,0.15321963]
[1736406632441,0.00105023,94339.0,94338.0,0.0827]
[1736406632980,0.00105023,94339.0,94338.0,0.0757]
[1736406633265,0.00205023,94339.0,94338.0,0.0837]
[1736406634449,0.00105023,94339.0,94338.0,0.0777]
[1736406634818,0.00105023,94339.0,94338.0,0.0807]
[1736406634968,0.00105023,94339.0,94338.0,0.0757]
[1736406635185,0.00105023,94339.0,94338.0,0.0777]
[1736406635938,0.00205023,94339.0,94338.0,0.0837]
[1736406636163,0.00105023,94339.0,94338.0,0.0777]
[1736406636498,0.00105023,94339.0,94338.0,0.0827]
[1736406636707,0.00105023,94339.0,94338.0,0.0807]
[1736406636924,0.0176589,94339.0,94338.0,0.0807]
[1736406637318,0.00105023,94339.0,94338.0,0.08788141]
[1736406637529,0.00105023,94339.0,94338.0,0.08682145]
[1736406638483,0.00105023,94339.0,94338.0,0.08882145]
[1736406638856,0.00105023,94339.0,94338.0,0.08182145]
[1736406639055,0.00105023,94339.0,94338.0,0.08382145]
[1736406639705,0.00205023,94339.0,94338.0,0.08982145]
[1736406640045,0.00105023,94339.0,94338.0,0.08382145]
[1736406640251,0.00205023,94339.0,94338.0,0.08882145]
[1736406640478,0.00105023,94339.0,94338.0,0.08382145]
[1736406641087,0.00105023,94339.0,94338.0,0.002]
[1736406641537,0.212003,94338.0,94335.0,0.0001704]
[1736406642251,0.424007,94338.0,94335.0,0.0001704]
[1736406642733,0.424007,94338.0,94335.0,0.0061704]
[1736406642734,0.212008,94336.0,94335.0,0.0061704]
[1736406642944,0.51210776,94336.0,94335.0,0.0001704]
[1736406643352,0.51210776,94336.0,94335.0,0.0071704]
[1736406643778,0.51210776,94336.0,94335.0,0.0021704]
[1736406643996,0.51210776,94336.0,94335.0,0.0061704]
[1736406644384,0.86282062,94336.0,94335.0,0.0061704]
[1736406644824,0.88456526,94336.0,94335.0,0.0041704]
[1736406645793,0.88456526,94336.0,94335.0,0.0001704]
[1736406645994,0.88756526,94336.0,94335.0,0.0001704]
[1736406646375,0.88456526,94336.0,94335.0,0.0021704]
[1736406646604,0.88756526,94336.0,94335.0,0.0001704]
[1736406646821,0.89456526,94336.0,94335.0,0.0011704]
[1736406647133,0.88756526,94336.0,94335.0,0.0001704]
[1736406647556,0.89456526,94336.0,94335.0,0.0011704]
[1736406647764,0.88756526,94336.0,94335.0,0.0001704]
[1736406647997,0.88456526,94336.0,94335.0,0.0001704]
[1736406648535,0.88756526,94336.0,94335.0,0.0001704]
[1736406648972,0.88456526,94336.0,94335.0,0.0001704]
[1736406649172,0.89156526,94336.0,94335.0,0.0011704]
[1736406649306,0.89456526,94336.0,94335.0,0.0011704]
[1736406650931,0.88756526,94336.0,94335.0,0.0001704]
[1736406651128,0.88456526,94336.0,94335.0,0.0001704]
[1736406651287,0.88556526,94336.0,94335.0,0.0001704]
[1736406651630,0.88856526,94336.0,94335.0,0.0001704]
[1736406651937,1.12269465,94336.0,94335.0,0.0001704]
[1736406652294,1.13269465,94336.0,94335.0,0.0011704]
[1736406652701,1.12969465,94336.0,94335.0,0.0011704]
[1736406653105,1.13269465,94336.0,94335.0,0.0011704]
[1736406654059,1.08689465,94336.0,94335.0,0.0011704]
[1736406655341,1.03937451,94336.0,94335.0,0.0011704]
[1736406658804,0.84976526,94336.0,94335.0,0.0011704]
[1736406659427,0.94364381,94336.0,94335.0,0.0011704]
[1736406660282,0.9602566,94336.0,94335.0,0.0011704]
[1736406660629,0.9502566,94336.0,94335.0,0.0001704]
[1736406660826,0.9572566,94336.0,94335.0,0.0011704]
[1736406661058,0.9602566,94336.0,94335.0,0.0011704]
[1736406661421,0.9572566,94336.0,94335.0,0.0011704]
[1736406661636,0.94064381,94336.0,94335.0,0.0011704]
[1736406661865,0.94364381,94336.0,94335.0,0.0011704]
[1736406662068,0.93664381,94336.0,94335.0,0.0001704]
[1736406662470,0.94364381,94336.0,94335.0,0.0011704]
[1736406662804,0.96664381,94336.0,94335.0,0.0011704]
[1736406668595,0.24387855,94335.0,94334.0,0.0001704]
[1736406668797,0.34817831,94335.0,94334.0,0.0001704]
[1736406668999,0.47117831,94335.0,94334.0,0.0001704]
[1736406669340,0.57890155,94329.0,94309.0,0.0001704]
[1736406669549,0.68320131,94329.0,94309.0,0.0001704]
[1736406671545,1.05252894,94329.0,94309.0,0.0001704]
[1736406671744,1.05652894,94329.0,94309.0,0.0001704]
[1736406671950,1.37862894,94329.0,94309.0,0.0001704]
[1736406672176,0.362053,94316.0,94309.0,0.0001704]
[1736406672331,0.46635276,94316.0,94309.0,0.0001704]
[1736406673401,0.212053,94316.0,94315.0,0.0787704]
[1736406673811,0.22281603,94316.0,94315.0,0.0787704]
[1736406674409,0.24379335,94316.0,94315.0,0.0787704]
[1736406674615,0.01176303,94316.0,94315.0,0.0787704]
[1736406674937,0.001,94316.0,94315.0,0.1264704]
[1736406675065,0.01039677,94317.0,94315.0,0.0478704]
[1736406675268,0.09471872,94319.0,94316.0,0.0776]
[1736406675485,0.09471872,94319.0,94316.0,0.0766]
[1736406676151,0.21100769,94324.0,94316.0,0.0736]
[1736406676152,0.02157024,94324.0,94316.0,0.0736]
[1736406676619,0.212037,94323.0,94316.0,0.0736]
[1736406676820,0.212037,94323.0,94316.0,0.0746]
[1736406677028,0.212037,94323.0,94316.0,0.0736]
[1736406678117,0.02157024,94324.0,94316.0,0.0736]
[1736406678321,0.01053838,94325.0,94316.0,0.0736]
[1736406678479,0.09471872,94331.0,94327.0,0.0464]
[1736406678680,0.09471872,94331.0,94330.0,0.00612145]
[1736406678892,0.2845043,94346.0,94330.0,0.05252145]
[1736406678893,0.14207808,94332.0,94330.0,0.05252145]
[1736406679153,0.14207808,94332.0,94331.0,0.341519]
[1736406679497,0.14207808,94332.0,94331.0,0.340519]
[1736406680137,0.211976,94350.0,94331.0,0.340519]
[1736406680138,0.211976,94350.0,94333.0,0.212014]
[1736406680332,0.211976,94350.0,94335.0,0.29431]
[1736406680824,0.211976,94350.0,94335.0,0.29331]
[1736406681196,0.002,94336.0,94335.0,0.29943145]
[1736406681389,0.002,94336.0,94335.0,0.0843]
[1736406682030,0.002,94336.0,94335.0,0.0823]
[1736406682439,0.002,94336.0,94335.0,0.101905]
[1736406683296,0.001,94336.0,94335.0,0.101905]
[1736406683498,0.002,94336.0,94335.0,0.107905]
[1736406683715,0.002,94336.0,94335.0,0.08948138]
[1736406684013,0.001,94336.0,94335.0,0.09948138]
[1736406684221,0.002,94336.0,94335.0,0.09948138]
[1736406684428,0.002,94336.0,94335.0,0.09748138]
[1736406684845,0.002,94336.0,94335.0,0.10048138]
[1736406686280,0.002,94336.0,94335.0,0.09942145]
[1736406686648,0.002,94336.0,94335.0,0.10048137]
[1736406689788,0.002,94336.0,94335.0,0.0933]
[1736406691568,0.002,94336.0,94335.0,0.09942145]
[1736406702850,0.002,94336.0,94335.0,0.20372121]
[1736406703060,0.002,94336.0,94335.0,0.35512097]
[1736406703498,0.002,94336.0,94335.0,0.36567045]
[1736406703899,0.002,94336.0,94335.0,0.26137069]
[1736406708351,0.002,94336.0,94335.0,0.46313463]
[1736406709738,0.01860611,94336.0,94335.0,0.46313463]
[1736406712596,0.01860611,94336.0,94335.0,0.51923057]
[1736406712768,0.002,94336.0,94335.0,0.51923057]
[1736406713515,0.002,94336.0,94335.0,0.51623057]
[1736406713970,0.002,94336.0,94335.0,0.51923057]
[1736406714302,0.001,94336.0,94335.0,0.51123057]
[1736406714496,0.002,94336.0,94335.0,0.51623057]
[1736406714698,0.001,94336.0,94335.0,0.50823057]
[1736406714901,0.001,94336.0,94335.0,0.51423057]
[1736406715076,0.002,94336.0,94335.0,0.52323057]
[1736406715269,0.002,94336.0,94335.0,0.50023057]
[1736406715483,0.002,94336.0,94335.0,0.55495057]
[1736406716305,0.002,94336.0,94335.0,0.54895057]
[1736406716503,0.002,94336.0,94335.0,0.49423057]
[1736406716725,0.002,94336.0,94335.0,0.49923057]
[1736406718752,0.002,94336.0,94335.0,0.45558515]
[1736406719902,0.002,94336.0,94335.0,0.45058515]
[1736406720480,0.002,94336.0,94335.0,0.45658515]
[1736406720684,0.001,94336.0,94335.0,0.34328539]
[1736406720898,0.001,94336.0,94335.0,0.29618539]
[1736406721078,0.002,94336.0,94335.0,0.30518539]
[1736406721685,0.002,94336.0,94335.0,0.39448515]
[1736406721824,0.001,94336.0,94335.0,0.39448515]
[1736406722035,0.002,94336.0,94335.0,0.40748515]
[1736406722500,0.001,94336.0,94335.0,0.39848515]
[1736406723301,0.001,94336.0,94335.0,0.39448515]
[1736406723701,0.001,94336.0,94335.0,0.40048515]
[1736406723907,0.002,94336.0,94335.0,0.40948515]
[1736406724114,0.001,94336.0,94335.0,0.40048515]
[1736406724283,0.001,94336.0,94335.0,0.39448515]
[1736406724482,0.002,94336.0,94335.0,0.40848515]
[1736406725615,0.002,94336.0,94335.0,0.22188539]
[1736406726623,0.002,94336.0,94335.0,0.21576394]
[1736406726832,0.002,94336.0,94335.0,0.21076394]
[1736406727030,0.002,94336.0,94335.0,0.21688539]
[1736406727232,0.001,94336.0,94335.0,0.21088539]
[1736406727602,0.001,94336.0,94335.0,0.21588539]
[1736406727603,0.002,94336.0,94335.0,0.21588539]
[1736406727803,0.001,94336.0,94335.0,0.20788539]
[1736406728051,0.001,94336.0,94335.0,0.21088539]
[1736406728220,0.002,94336.0,94335.0,0.21888539]
[1736406728398,0.001,94336.0,94335.0,0.21088539]
[1736406728606,0.001,94336.0,94335.0,0.39238515]
[1736406728851,0.002,94336.0,94335.0,0.40038515]
[1736406729032,0.002,94336.0,94335.0,0.29608539]
[1736406729713,0.002,94336.0,94335.0,0.29308539]
[1736406729925,0.002,94336.0,94335.0,0.29608539]
[1736406730340,0.01860747,94336.0,94335.0,0.29308539]
[1736406730715,0.01760747,94336.0,94335.0,0.28808539]
[1736406730869,0.01860747,94336.0,94335.0,0.29708539]
[1736406731071,0.002,94336.0,94335.0,0.29708539]
[1736406731273,0.001,94336.0,94335.0,0.28808539]
[1736406731495,0.002,94336.0,94335.0,0.29708539]
[1736406731819,0.001,94336.0,94335.0,0.28808539]
[1736406732202,0.002,94336.0,94335.0,0.29708539]
[1736406732400,0.001,94336.0,94335.0,0.28808539]
[1736406732779,0.001,94336.0,94335.0,0.28508539]
[1736406732982,0.001,94336.0,94335.0,0.28808539]
[1736406733188,0.001,94336.0,94335.0,0.39238515]
[1736406733400,0.001,94336.0,94335.0,0.54222907]
[1736406733619,0.001,94336.0,94335.0,0.43938515]
[1736406733845,0.001,94336.0,94335.0,0.33508539]
[1736406734062,0.002,94336.0,94335.0,0.34408539]
[1736406734255,0.001,94336.0,94335.0,0.33508539]
[1736406734648,0.002,94336.0,94335.0,0.34408539]
[1736406736329,0.002,94336.0,94335.0,0.29708539]
[1736406736736,0.01860744,94336.0,94335.0,0.29708539]
[1736406737472,0.002,94336.0,94335.0,0.29708539]
[1736406738847,0.002,94336.0,94335.0,0.21988539]
[1736406741649,0.01860785,94336.0,94335.0,0.21988539]
[1736406741867,0.002,94336.0,94335.0,0.21988539]
[1736406747218,0.002,94336.0,94335.0,0.21376394]
[1736406747450,0.002,94336.0,94335.0,0.012]
[1736406751707,0.01860982,94336.0,94335.0,0.012]
[1736406754593,0.01680883,94336.0,94335.0,0.012]
[1736406756627,0.00019901,94336.0,94335.0,0.012]
[1736406782151,0.01680914,94336.0,94335.0,0.012]
[1736406782485,0.00019901,94336.0,94335.0,0.012]
[1736406785151,0.00019901,94336.0,94335.0,0.009]
[1736406785299,0.00019901,94336.0,94335.0,0.011]
[1736406785688,0.424007,94338.0,94335.0,0.002]
[1736406785890,0.213008,94336.0,94335.0,0.008]
[1736406787468,0.213008,94336.0,94335.0,0.006]
[1736406787711,0.213008,94336.0,94335.0,0.007]
[1736406788303,0.212008,94336.0,94323.0,0.212036]
[1736406788495,0.212008,94336.0,94335.0,0.001]
[1736406788695,0.212008,94336.0,94335.0,0.005]
[1736406788897,0.212008,94336.0,94335.0,0.001]
[1736406789301,0.51884758,94336.0,94335.0,0.003]
[1736406791615,0.51884758,94336.0,94335.0,0.004]
[1736406792415,0.424016,94336.0,94335.0,0.004]
[1736406792616,0.424016,94336.0,94323.0,0.212036]
[1736406792864,0.424016,94336.0,94335.0,0.002]
[1736406793364,0.424016,94336.0,94323.0,0.212036]
[1736406794431,0.09519982,94332.0,94323.0,0.212036]
[1736406795454,0.09519982,94332.0,94323.0,0.214036]
[1736406795838,0.09519982,94332.0,94323.0,0.212036]
[1736406796034,0.09519982,94332.0,94323.0,0.216036]
[1736406797256,0.09519982,94332.0,94323.0,0.215036]
[1736406797458,0.09519982,94332.0,94323.0,0.216036]
[1736406797765,0.09519982,94331.0,94323.0,0.216036]
[1736406797954,0.09519982,94331.0,94323.0,0.212036]
[1736406798161,0.09519982,94331.0,94323.0,0.215036]
[1736406798322,0.09519982,94331.0,94323.0,0.216036]
[1736406798836,0.09519982,94331.0,94323.0,0.215036]
[1736406799486,0.09519982,94331.0,94323.0,0.213036]
[1736406799981,0.09519982,94331.0,94323.0,0.216036]
[1736406800997,0.09519982,94329.0,94323.0,0.216036]
[1736406801840,0.09464899,94329.0,94323.0,0.215036]
[1736406802040,0.09464899,94330.0,94323.0,0.215036]
[1736406802253,0.09464899,94330.0,94323.0,0.213036]
[1736406802408,0.09464899,94330.0,94323.0,0.217036]
[1736406802764,0.09464899,94330.0,94323.0,0.216036]
[1736406803177,0.09464899,94330.0,94323.0,0.217036]
[1736406803308,0.09464899,94330.0,94323.0,0.213036]
[1736406803523,0.14279973,94334.0,94323.0,0.215036]
[1736406804540,0.14279973,94334.0,94323.0,0.214036]
[1736406804875,0.14279973,94334.0,94323.0,0.215036]
[1736406805295,0.14279973,94334.0,94323.0,0.212036]
[1736406805483,0.14279973,94335.0,94323.0,0.212036]
[1736406805692,0.212012,94334.0,94323.0,0.212036]
[1736406806932,0.14279973,94333.0,94323.0,0.212036]
[1736406808491,0.14279973,94331.0,94323.0,0.212036]
[1736406808665,0.14279973,94331.0,94323.0,0.213036]
[1736406808979,0.14279973,94331.0,94323.0,0.212036]
[1736406809734,0.14279973,94331.0,94323.0,0.213036]
[1736406809940,0.14279973,94331.0,94323.0,0.212036]
[1736406810294,0.14279973,94331.0,94323.0,0.214036]
[1736406810881,0.14279973,94332.0,94323.0,0.214036]
[1736406811983,0.01661105,94330.0,94323.0,0.212036]
[1736406812413,0.01661105,94330.0,94323.0,0.213036]
[1736406813331,0.09513775,94328.0,94322.0,0.212039]
[1736406813524,0.09513775,94328.0,94323.0,0.001]
[1736406813731,0.09513775,94328.0,94323.0,0.003]
[1736406814700,0.09513775,94328.0,94323.0,0.002]
[1736406814918,0.09513775,94328.0,94322.0,0.212039]
[1736406815328,0.09513775,94328.0,94323.0,0.002]
[1736406815533,0.09513775,94328.0,94322.0,0.212039]
[1736406815736,0.09513775,94328.0,94323.0,0.001]
[1736406815959,0.09513775,94328.0,94323.0,0.004]
[1736406816798,0.31632676,94328.0,94323.0,0.004]
[1736406817403,0.32678737,94328.0,94323.0,0.004]
[1736406817827,0.10429976,94327.0,94323.0,0.004]
[1736406818043,0.21203,94326.0,94315.0,0.0001704]
[1736406818252,0.212045,94320.0,94315.0,0.0001704]
[1736406818452,0.212048,94318.0,94315.0,0.0001704]
[1736406818654,0.10429976,94317.0,94315.0,0.0001704]
[1736406818852,0.212053,94316.0,94315.0,0.0001704]
[1736406819049,0.31635276,94316.0,94315.0,0.0001704]
[1736406819284,0.56143537,94316.0,94315.0,0.0001704]
[1736406819735,0.56143537,94316.0,94315.0,0.0041704]
[1736406820009,1.05394309,94316.0,94315.0,0.0001704]
[1736406820685,1.19632164,94316.0,94315.0,0.0001704]
[1736406820905,1.29632164,94316.0,94315.0,0.0001704]
[1736406821279,1.07015646,94316.0,94315.0,0.0051704]
[1736406821680,1.07015646,94316.0,94315.0,0.0001704]
[1736406822765,1.07315646,94316.0,94315.0,0.0001704]
[1736406822969,1.07115646,94316.0,94315.0,0.0001704]
[1736406823508,1.19580859,94316.0,94315.0,0.0001704]
[1736406824368,1.19780859,94316.0,94315.0,0.0001704]
[1736406824581,1.19880859,94316.0,94315.0,0.0001704]
[1736406825008,1.48328004,94316.0,94315.0,0.0001704]
[1736406825202,1.82199615,94316.0,94315.0,0.0001704]
[1736406826433,1.52090859,94316.0,94315.0,0.0001704]
[1736406827818,0.55594455,94310.0,94309.0,0.0001704]
[1736406827964,0.66024431,94310.0,94309.0,0.0001704]
[1736406829197,0.66029451,94310.0,94309.0,0.0001704]
[1736406829590,1.02770461,94310.0,94309.0,0.0001704]
[1736406830871,1.01108803,94310.0,94309.0,0.0001704]
[1736406831208,0.80227576,94310.0,94309.0,0.0001704]
[1736406832484,0.66029451,94310.0,94309.0,0.0001704]
[1736406833491,0.75490993,94310.0,94309.0,0.0001704]
[1736406834630,0.66029451,94310.0,94309.0,0.0001704]
[1736406838255,0.71501451,94310.0,94309.0,0.0001704]
[1736406841446,0.73801451,94310.0,94309.0,0.0001704]
[1736406841644,0.75463119,94310.0,94309.0,0.0001704]
[1736406842592,0.85324661,94310.0,94309.0,0.0001704]
[1736406842740,0.86224661,94310.0,94309.0,0.0011704]
[1736406843145,0.85324661,94310.0,94309.0,0.0001704]
[1736406843434,0.86224661,94310.0,94309.0,0.0011704]
[1736406843832,0.76763119,94310.0,94309.0,0.0011704]
[1736406844807,0.75463119,94310.0,94309.0,0.0001704]
[1736406845031,0.75863119,94310.0,94309.0,0.0001704]
[1736406845147,0.76763119,94310.0,94309.0,0.0011704]
[1736406845559,0.76363119,94310.0,94309.0,0.0011704]
[1736406846061,0.75863119,94310.0,94309.0,0.0001704]
[1736406846270,0.76763119,94310.0,94309.0,0.0011704]
[1736406847048,0.75101451,94310.0,94309.0,0.0011704]
[1736406847297,1.07311451,94310.0,94309.0,0.0011704]
[1736406847494,1.11821451,94310.0,94309.0,0.0011704]
[1736406848196,0.09387855,94299.0,94298.0,0.0001706]
[1736406848403,0.44817831,94299.0,94298.0,0.0001706]
[1736406849407,0.47817831,94299.0,94298.0,0.0001706]
[1736406850015,0.49479726,94299.0,94298.0,0.0001706]
[1736406850226,0.51588442,94299.0,94298.0,0.0001706]
[1736406851061,0.61047532,94299.0,94298.0,0.0001706]
[1736406851462,0.62093669,94299.0,94298.0,0.0001706]
[1736406851678,0.61593669,94299.0,94298.0,0.0001706]
[1736406851901,0.61393669,94299.0,94298.0,0.0001706]
[1736406852124,0.94303669,94299.0,94298.0,0.0001706]
[1736406852332,1.38695613,94299.0,94298.0,0.0001706]
[1736406854628,1.38934442,94299.0,94298.0,0.0001706]
[1736406855083,1.19999575,94299.0,94298.0,0.0001706]
[1736406857405,1.1833768,94299.0,94298.0,0.0001706]
[1736406858698,0.9497019,94299.0,94298.0,0.0001706]
[1736406858866,0.93949825,94299.0,94298.0,0.0001706]
[1736406860732,1.08949825,94299.0,94298.0,0.0001706]
[1736406861886,1.10611839,94299.0,94298.0,0.0001706]
[1736406864666,1.08949825,94299.0,94298.0,0.0001706]
[1736406867895,0.4221,94286.0,94283.0,0.0001704]
[1736406868125,0.023,94284.0,94283.0,0.0001704]
[1736406868323,0.27729976,94284.0,94283.0,0.0001704]
[1736406868547,0.69939976,94284.0,94283.0,0.0001704]
[1736406869730,0.70139976,94284.0,94283.0,0.0001704]
[1736406870048,0.70379254,94284.0,94283.0,0.0001704]
[1736406870224,1.05695421,94284.0,94283.0,0.0001704]
[1736406870634,1.06739301,94284.0,94283.0,0.0001704]
[1736406871820,0.212156,94270.0,94269.0,2e-08]
[1736406872028,0.33945576,94270.0,94269.0,2e-08]
[1736406872431,0.48945576,94270.0,94269.0,2e-08]
[1736406872877,0.49184854,94270.0,94269.0,2e-08]
[1736406873078,0.49199905,94270.0,94269.0,0.00100002]
[1736406873289,0.59199905,94270.0,94269.0,0.00100002]
[1736406873422,0.59199905,94270.0,94269.0,0.00400002]
[1736406873629,0.59199905,94270.0,94269.0,0.00100002]
[1736406874661,0.93876794,94270.0,94269.0,0.00100002]
[1736406874908,0.93876794,94270.0,94269.0,2e-08]
[1736406875065,0.94076794,94270.0,94269.0,2e-08]
[1736406875272,0.97642181,94270.0,94269.0,2e-08]
[1736406875451,0.97242181,94270.0,94269.0,2e-08]
[1736406875833,0.97642181,94270.0,94269.0,2e-08]
[1736406876006,0.97842181,94270.0,94269.0,2e-08]
[1736406876248,0.97242181,94270.0,94269.0,2e-08]
[1736406876444,0.97042181,94270.0,94269.0,2e-08]
[1736406876654,0.97842181,94270.0,94269.0,2e-08]
[1736406876852,0.97042181,94270.0,94269.0,2e-08]
[1736406877190,1.05985292,94270.0,94269.0,2e-08]
[1736406877894,1.06285292,94270.0,94269.0,2e-08]
[1736406878457,1.06485292,94270.0,94269.0,2e-08]
[1736406878869,1.06685292,94270.0,94269.0,2e-08]
[1736406879032,1.06185292,94270.0,94269.0,2e-08]
[1736406879227,1.05985292,94270.0,94269.0,2e-08]
[1736406879436,1.06685292,94270.0,94269.0,2e-08]
[1736406879639,1.06285292,94270.0,94269.0,2e-08]
[1736406880014,1.06785292,94270.0,94269.0,2e-08]
[1736406881050,1.06485292,94270.0,94269.0,2e-08]
[1736406881448,1.06685292,94270.0,94269.0,2e-08]
[1736406881662,1.08347657,94270.0,94269.0,2e-08]
[1736406881862,1.07647657,94270.0,94269.0,2e-08]
[1736406882059,0.89704546,94270.0,94269.0,2e-08]
[1736406882574,0.89004546,94270.0,94269.0,2e-08]
[1736406883045,0.89704546,94270.0,94269.0,2e-08]
[1736406884373,0.89404546,94270.0,94269.0,2e-08]
[1736406884971,0.88704546,94270.0,94269.0,2e-08]
[1736406885104,0.89504546,94270.0,94269.0,2e-08]
[1736406887399,0.87842181,94270.0,94269.0,2e-08]
[1736406888342,1.1152107,94270.0,94269.0,2e-08]
[1736406890220,1.11464849,94270.0,94269.0,2e-08]
[1736406891067,0.173,94269.0,94260.0,8.53e-05]
[1736406891241,0.9030547,94270.0,94260.0,8.53e-05]
[1736406891242,0.235176,94261.0,94260.0,8.53e-05]
[1736406891420,0.33947576,94261.0,94260.0,8.53e-05]
[1736406892832,0.023,94260.0,94257.0,0.07698431]
[1736406893034,0.212183,94258.0,94257.0,0.07698431]
[1736406893167,0.31648276,94258.0,94257.0,0.07698431]
[1736406894979,0.33310645,94258.0,94257.0,0.07698431]
[1736406895797,0.31648276,94258.0,94257.0,0.07698431]
[1736406896381,0.32820581,94258.0,94257.0,0.07698431]
[1736406898211,0.32720581,94258.0,94257.0,0.07698431]
[1736406898569,0.01272305,94258.0,94257.0,0.12328431]
[1736406898771,0.002,94258.0,94257.0,0.12328431]
[1736406899398,0.09474055,94260.0,94259.0,0.1228]
[1736406899610,0.09474055,94260.0,94259.0,0.1218]
[1736406900295,0.11136318,94260.0,94259.0,0.1218]
[1736406900502,0.09474055,94260.0,94259.0,0.1218]
[1736406900708,0.212165,94266.0,94260.0,0.0761]
[1736406901356,0.212165,94266.0,94260.0,0.0751]
[1736406901969,0.212165,94266.0,94260.0,0.0761]
[1736406902842,0.0107886,94267.0,94260.0,0.0751]
[1736406902843,0.212176,94262.0,94260.0,0.0751]
[1736406903051,0.212176,94262.0,94260.0,0.0771]
[1736406903261,0.31647576,94262.0,94260.0,0.0771]
[1736406903463,0.33309866,94262.0,94260.0,0.0771]
[1736406904100,0.33309866,94262.0,94260.0,0.0781]
[1736406904438,0.33309866,94262.0,94260.0,0.0751]
[1736406904636,0.31647576,94262.0,94260.0,0.0751]
[1736406904822,0.31647576,94262.0,94260.0,0.0781]
[1736406905026,0.31647576,94262.0,94260.0,0.0761]
[1736406905453,0.31647576,94262.0,94260.0,0.0781]
[1736406906284,0.31647576,94262.0,94260.0,0.0761]
[1736406906802,0.31647576,94262.0,94260.0,0.0751]
[1736406907107,0.31647576,94262.0,94260.0,0.0761]
[1736406907518,0.31647576,94262.0,94260.0,0.0751]
[1736406908200,0.31647576,94262.0,94260.0,0.0771]
[1736406909032,0.31647576,94262.0,94260.0,0.0751]
[1736406909234,0.10429976,94262.0,94260.0,0.0751]
[1736406909437,0.10429976,94262.0,94260.0,0.0771]
[1736406910348,0.212176,94261.0,94260.0,0.0781]
[1736406911344,0.212176,94261.0,94260.0,0.0761]
[1736406911883,0.212176,94261.0,94260.0,0.0771]
[1736406913289,0.212176,94261.0,94260.0,0.0781]
[1736406914074,0.212176,94261.0,94260.0,0.0771]
[1736406914502,0.212176,94261.0,94260.0,0.0781]
[1736406914957,0.212176,94261.0,94260.0,0.0761]
[1736406915284,0.212176,94261.0,94260.0,0.0781]
[1736406916424,0.09474055,94262.0,94260.0,0.0781]
[1736406917245,0.09474055,94262.0,94260.0,0.0771]
[1736406917447,0.09474055,94262.0,94260.0,0.0781]
[1736406917846,0.02160692,94266.0,94260.0,0.0781]
[1736406918125,0.02160692,94266.0,94260.0,0.0751]
[1736406918324,0.212167,94265.0,94260.0,0.0761]
[1736406918527,0.212167,94265.0,94260.0,0.0781]
[1736406918754,0.424336,94265.0,94260.0,0.0761]
[1736406919159,0.424344,94263.0,94260.0,0.003]
[1736406919362,0.235176,94261.0,94260.0,0.001]
[1736406919572,0.33947576,94261.0,94260.0,0.001]
[1736406919766,0.33947576,94261.0,94260.0,0.003]
[1736406920086,0.15170211,94261.0,94249.0,0.1287]
[1736406920289,0.023,94259.0,94242.0,0.0829]
[1736406920542,0.212212,94246.0,94242.0,0.0829]
[1736406920902,0.10429976,94245.0,94242.0,0.0829]
[1736406921309,0.212215,94244.0,94242.0,0.0829]
[1736406921512,0.31651676,94243.0,94240.0,8.52e-05]
[1736406921916,0.52873376,94243.0,94240.0,8.52e-05]
[1736406922378,0.31651676,94243.0,94242.0,0.002]
[1736406922672,0.52873376,94243.0,94240.0,8.52e-05]
[1736406922802,0.212221,94241.0,94240.0,0.0020852]
[1736406923054,0.32271054,94241.0,94240.0,0.0020852]
[1736406923268,0.32271054,94241.0,94240.0,8.52e-05]
[1736406923903,0.34447545,94241.0,94240.0,8.52e-05]
[1736406924108,0.00618978,94241.0,94240.0,0.082987]
[1736406924311,0.001,94243.0,94241.0,0.0484]
[1736406924522,0.001,94243.0,94242.0,0.0824]
[1736406924939,0.18948111,94243.0,94242.0,0.0824]
[1736406925759,0.18948111,94243.0,94242.0,0.0854]
[1736406926175,0.212196,94253.0,94242.0,0.0854]
[1736406926375,0.31649576,94253.0,94242.0,0.0854]
[1736406926576,0.31649576,94253.0,94242.0,0.0834]
[1736406927070,0.31649576,94253.0,94242.0,0.0824]
[1736406927448,0.31649576,94253.0,94242.0,0.0834]
[1736406927658,0.00486596,94252.0,94242.0,0.0834]
[1736406927860,0.00486596,94252.0,94243.0,0.212217]
[1736406928304,0.00486596,94252.0,94244.0,0.0782]
[1736406929517,0.00486596,94252.0,94244.0,0.0802]
[1736406929713,0.00486596,94252.0,94245.0,0.424424]
[1736406929921,0.212185,94258.0,94246.0,0.0782]
[1736406930120,0.212188,94256.0,94246.0,0.0782]
[1736406930318,0.00486613,94255.0,94246.0,0.0782]
[1736406932067,0.10429976,94257.0,94246.0,0.0782]